[Event "19th Lviv Tradition 2018"]
[Site "Lviv"]
[Date "2018.01.25"]
[Round "7"]
[White "Bykovskiy, Oleg"]
[Black "Moliboga, V."]
[Result "1-0"]
[ECO "B09"]
[WhiteElo "2197"]
[BlackElo "2310"]
[Annotator "NA"]
[PlyCount "161"]
[EventDate "2018.??.??"]
[EventType "tourn"]
[EventCountry "UKR"]
[SourceTitle "playchess.com"]
[Source "ChessBase"]
[SourceQuality "1"]
[TimeControl "5400+30"]

1. e4 {[%emt 0:00:00]} d6 {[%emt 0:00:11]} 2. d4 {[%emt 0:00:00]} Nf6 {[%emt 0:00:06]} 3. Nc3 {[%emt 0:00:00]} g6 {[%emt 0:00:06]} 4. f4 {[%emt 0:00:00]} Bg7 {[%emt 0:00:05]} 5. e5 {[%emt 0:00:00] LiveBook: 131 Games} dxe5 {[%emt 0:02:20]} 6. dxe5 {[%emt 0:00:01]} Qxd1+ {[%emt 0:00:52]} 7. Kxd1 {[%emt 0:00:37]} Ng4 {[%emt 0:00:25]} 8. Ke1 {[%emt 0:00:05]} f6 {[%emt 0:05:11]} 9. h3 {[%emt 0:02:04] B09: Pirc Defence: Austrian Attack} Nh6 {[%emt 0:00:09]} 10. exf6 {[%emt 0:00:18]} exf6 {[%emt 0:00:19]} 11. g4 {[%emt 0:00:02]} f5 {[%emt 0:01:57]} 12. g5 $146 {[%emt 0:01:02]} ({Predecessor:} 12. Bc4 fxg4 13. Nd5 Kd7 14. hxg4 Nxg4 15. f5 c6 16. Nf4 gxf5 {0-1 (46) Nieto,E (2169)-Cekro,E (2408) Belgium 2005}) 12... Nf7 {[%emt 0:00:17]} 13. Nf3 {[%emt 0:01:37]} Bd7 {[%emt 0:08:59]} 14. Kf2 {[%emt 0:00:59]} Nc6 {[%emt 0:00:47]} 15. Bc4 {[%emt 0:01:12]} Nd6 {[%emt 0:00:42]} 16. Re1+ {[%emt 0:00:43]} Kd8 {[%emt 0:00:29]} 17. Bb3 {[%emt 0:01:33]} Nd4 {[%emt 0:15:51]} 18. Ne5 {[%emt 0:06:10]} Re8 {[%emt 0:01:27]} 19. Be3 {[%emt 0:04:14]} Nxb3 {[%emt 0:03:46]} 20. axb3 {[%emt 0:00:10]} Bxe5 {[%emt 0:01:26]} 21. fxe5 {[%emt 0:00:02]} Rxe5 {[%emt 0:00:16]} 22. Bd4 {[%emt 0:00:01]} Ne4+ {[%emt 0:01:59]} 23. Nxe4 {[%emt 0:03:22]} Rxe4 {[%emt 0:00:34]} 24. Rxe4 {[%emt 0:00:02]} fxe4 {[%emt 0:00:08]} 25. Ke3 {[%emt 0:00:00]} Bf5 {[%emt 0:00:44]} 26. Kf4 {[%emt 0:00:10]} Kd7 {[%emt 0:01:21]} 27. h4 {[%emt 0:00:02] [#]} e3 $1 {[%emt 0:05:23]} 28. Kxe3 {[%emt 0:01:48]} Bxc2 {[%emt 0:00:31]} 29. b4 {[%emt 0:00:01]} a6 {[%emt 0:02:56]} 30. Kf4 {[%emt 0:03:24]} Re8 {[%emt 0:00:40]} 31. Be5 {[%emt 0:00:02]} Re6 {[%emt 0:00:58]} 32. Rc1 {[%emt 0:08:30]} Rc6 {[%emt 0:00:46]} 33. Bd4 {[%emt 0:00:02]} Rc4 {[%emt 0:01:30]} 34. Ke5 {[%emt 0:00:36]} Kc6 {[%emt 0:00:17]} 35. Bc3 {[%emt 0:01:33]} Re4+ {[%emt 0:11:16]} 36. Kf6 {[%emt 0:00:47]} Bb3 {[%emt 0:05:49]} 37. Be5+ {[%emt 0:05:13]} Rc4 {[%emt 0:00:35]} 38. Rh1 {[%emt 0:03:38]} Rxb4 {[%emt 0:03:43]} 39. Kg7 {[%emt 0:00:27]} Rb5 {[%emt 0:05:06]} 40. Bf6 {[%emt 0:01:53]} Bd5 {[%emt 0:01:55]} 41. Rh2 {[%emt 0:00:37]} ({Better is} 41. Rh3 $11) 41... Be4 {[%emt 0:00:57]} ({Black should play} 41... Bf3 $1 $15) 42. Kxh7 {[%emt 0:00:06]} Rd5 {[%emt 0:00:28]} 43. Re2 {[%emt 0:00:48]} Rd7+ {[%emt 0:00:48]} 44. Kh6 $14 {[%emt 0:00:05]} Bd3 {[%emt 0:02:28]} 45. Re3 {[%emt 0:08:23]} Bf5 {[%emt 0:00:44]} 46. Rf3 {[%emt 0:00:31]} Kd5 {[%emt 0:03:08]} 47. h5 {[%emt 0:03:57]} Be4 {[%emt 0:03:26]} 48. Rf2 {[%emt 0:00:29]} gxh5 {[%emt 0:00:56]} 49. g6 {[%emt 0:00:05]} Bxg6 {[%emt 0:00:58]} 50. Kxg6 {[%emt 0:00:08]} c5 {[%emt 0:00:50]} 51. Rh2 {[%emt 0:02:02]} b5 {[%emt 0:00:21]} 52. Rxh5+ {[%emt 0:00:02]} Kc4 {[%emt 0:01:09]} 53. Rh4+ {[%emt 0:01:36]} Kb3 {[%emt 0:03:05]} 54. Rh3+ {[%emt 0:00:10]} Kb4 {[%emt 0:00:20]} 55. Ra3 {[%emt 0:00:13]} a5 {[%emt 0:01:34]} 56. Bc3+ {[%emt 0:00:55]} Kc4 {[%emt 0:00:07]} 57. Rxa5 {[%emt 0:00:22]} b4 {[%emt 0:01:59]} 58. Be5 {[%emt 0:00:46]} Kd5 {[%emt 0:01:16]} 59. Kf5 {[%emt 0:02:07]} Rh7 {[%emt 0:00:08]} 60. Bf6 {[%emt 0:00:11]} Rh2 {[%emt 0:00:18]} 61. Ra8 {[%emt 0:01:31]} Rf2+ {[%emt 0:00:13]} 62. Kg6 {[%emt 0:00:01]} Kc6 {[%emt 0:01:06]} 63. Kf7 {[%emt 0:00:22]} Kb7 {[%emt 0:00:41]} 64. Re8 {[%emt 0:00:06]} Kc6 {[%emt 0:00:50]} 65. Ke6 {[%emt 0:00:18]} c4 {[%emt 0:00:49]} 66. Rc8+ {[%emt 0:00:17]} Kb5 {[%emt 0:00:19]} 67. Bd4 {[%emt 0:01:04]} Rh2 {[%emt 0:01:23]} 68. Rc5+ {[%emt 0:00:46]} Ka4 {[%emt 0:00:17]} 69. Rxc4 {[%emt 0:00:19]} Kb3 {[%emt 0:01:08]} 70. Rc8 {[%emt 0:00:15]} Rh5 {[%emt 0:00:24]} 71. Be5 {[%emt 0:00:37]} Ka2 {[%emt 0:00:13]} 72. Ra8+ {[%emt 0:00:14]} Kb3 {[%emt 0:00:56]} 73. Rb8 {[%emt 0:00:10]} Rh4 {[%emt 0:00:16]} 74. Kd5 {[%emt 0:00:18]} Rh5 {[%emt 0:00:13]} 75. Rf8 {[%emt 0:01:07]} Ka2 {[%emt 0:00:33]} 76. Rf2 {[%emt 0:00:12]} Kb3 {[%emt 0:00:43]} 77. Re2 {[%emt 0:00:13]} Rh3 {[%emt 0:00:45]} 78. Kc5 {[%emt 0:00:14]} Rh4 {[%emt 0:00:51]} 79. Kd5 {[%emt 0:01:41]} Rh3 {[%emt 0:00:42]} 80. Re4 {[%emt 0:00:14]} Rd3+ {[%emt 0:00:33]} 81. Kc5 {[%emt 0:00:17]} 1-0

[Event "19th Lviv Tradition 2018"]
[Site "Lviv"]
[Date "2018.01.25"]
[Round "7"]
[White "Kryvoruchko, Vita"]
[Black "Kyrychenko, Maryan"]
[Result "1-0"]
[ECO "E20"]
[WhiteElo "2192"]
[BlackElo "2254"]
[Annotator "NA"]
[PlyCount "89"]
[EventDate "2018.??.??"]
[EventType "tourn"]
[EventCountry "UKR"]
[SourceTitle "playchess.com"]
[Source "ChessBase"]
[SourceQuality "1"]
[TimeControl "5400+30"]

1. d4 {[%emt 0:00:06]} Nf6 {[%emt 0:00:28]} 2. c4 {[%emt 0:00:05]} e6 {[%emt 0:00:24]} 3. Nc3 {[%emt 0:00:06]} Bb4 {[%emt 0:00:08]} 4. f3 {[%emt 0:00:03]} c5 {[%emt 0:00:05] LiveBook: 1011 Games} 5. a3 {[%emt 0:01:19]} Bxc3+ {[%emt 0:00:37]} 6. bxc3 {[%emt 0:00:01]} d5 {[%emt 0:02:08]} 7. e3 {[%emt 0:00:08]} O-O {[%emt 0:00:13]} 8. Bd3 {[%emt 0:00:04]} Nc6 {[%emt 0:00:13]} 9. Ne2 {[%emt 0:00:13]} b6 {[%emt 0:05:01]} 10. O-O {[%emt 0:00:06]} Re8 {[%emt 0:00:16]} 11. cxd5 {[%emt 0:16:10]} exd5 {[%emt 0:01:22]} 12. Ng3 {[%emt 0:00:25]} a5 {[%emt 0:04:31] E49: Nimzo-Indian: Rubinstein: 5 Bd3 d5 6 a3 Bxc3+ 7 bxc3} 13. Re1 {[%emt 0:03:31]} (13. Kh1 Ba6 14. Bxa6 Rxa6 15. Ra2 Ra7 16. a4 Rae7 17. Qb3 cxd4 18. cxd4 Nb4 19. Re2 Rc7 20. Ba3 {0-1 (40) Tregubov,P (2585)-Mareco,S (2635) Doha 2016}) 13... Ba6 {[%emt 0:02:10]} 14. Bxa6 {[%emt 0:01:03]} Rxa6 {[%emt 0:00:01]} 15. Bb2 $146 {[%emt 0:00:09]} ({Predecessor:} 15. Ra2 cxd4 16. cxd4 b5 17. Rc2 Qb6 18. Rc5 a4 19. Qd3 Rb8 20. e4 dxe4 21. fxe4 Nd7 22. Rd5 Nde5 23. Qc3 Nc4 24. Nf5 N6e5 25. Bf4 Re8 26. Bxe5 {1-0 (26) Muir,A (2297)-Rogacewicz,M (1961) Hastings 2018}) 15... h5 {[%emt 0:28:08] [#]} 16. e4 $1 {[%emt 0:08:12]} g6 {[%emt 0:14:08]} 17. e5 {[%emt 0:00:25]} Nh7 {[%emt 0:00:31]} 18. e6 {[%emt 0:01:04]} f5 {[%emt 0:01:10]} 19. c4 {[%emt 0:13:05]} Nxd4 {[%emt 0:08:08]} 20. Bxd4 {[%emt 0:00:16]} cxd4 {[%emt 0:00:01]} 21. Qxd4 {[%emt 0:00:33]} dxc4 {[%emt 0:00:08]} 22. Qxc4 {[%emt 0:02:10]} b5 $1 {[%emt 0:00:06]} 23. Qb3 {[%emt 0:01:13]} Qb6+ {[%emt 0:00:30]} 24. Kh1 {[%emt 0:01:55]} Rxe6 {[%emt 0:00:31]} 25. Rxe6 {[%emt 0:10:08]} Qxe6 {[%emt 0:00:08]} 26. Qxb5 {[%emt 0:00:04]} Nf6 {[%emt 0:02:52]} 27. Rc1 {[%emt 0:01:10]} a4 $14 {[%emt 0:13:59]} 28. Ne2 {[%emt 0:00:40]} Rb6 {[%emt 0:01:59]} 29. Qa5 {[%emt 0:00:20]} Rd6 {[%emt 0:02:25]} 30. Ng1 {[%emt 0:04:01]} Qd7 {[%emt 0:05:26]} 31. Rc7 {[%emt 0:00:41]} Qe8 {[%emt 0:03:04]} 32. Ra7 {[%emt 0:03:55]} Rd8 {[%emt 0:00:18]} 33. Qc7 {[%emt 0:01:07]} Qd7 {[%emt 0:01:49]} 34. Qc4+ {[%emt 0:01:04]} Qd5 {[%emt 0:00:01]} 35. Qxa4 {[%emt 0:00:12]} Rc8 {[%emt 0:02:28]} 36. Qb4 {[%emt 0:07:46]} Re8 {[%emt 0:01:05]} 37. a4 {[%emt 0:01:48]} Nd7 {[%emt 0:01:42]} 38. a5 {[%emt 0:00:56]} Ne5 {[%emt 0:00:36]} 39. a6 {[%emt 0:05:56]} Nd3 {[%emt 0:00:20]} 40. Qb6 {[%emt 0:00:37]} Re6 {[%emt 0:00:45]} 41. Qb8+ {[%emt 0:00:08]} Re8 42. Qb6 Qd6 43. Qb3+ Re6 44. g3 Qb6 45. Ra8+ 1-0

[Event "19th Lviv Tradition 2018"]
[Site "Lviv"]
[Date "2018.01.25"]
[Round "7"]
[White "Medvedyk, Volodymyr"]
[Black "Bets, Anatolij"]
[Result "1/2-1/2"]
[ECO "E04"]
[WhiteElo "2116"]
[BlackElo "2266"]
[Annotator "NA"]
[PlyCount "66"]
[EventDate "2018.??.??"]
[EventType "tourn"]
[EventCountry "UKR"]
[SourceTitle "playchess.com"]
[Source "ChessBase"]
[SourceQuality "1"]
[TimeControl "5400+30"]

1. d4 {[%emt 0:01:04]} Nf6 {[%emt 0:00:19]} 2. c4 {[%emt 0:00:23]} e6 {[%emt 0:00:33]} 3. g3 {[%emt 0:00:11]} d5 {[%emt 0:01:21]} 4. Nf3 {[%emt 0:00:27]} dxc4 {[%emt 0:01:01]} 5. Bg2 {[%emt 0:00:34]} c5 {[%emt 0:01:47]} 6. O-O {[%emt 0:13:45]} Nc6 {[%emt 0:01:50]} 7. dxc5 {[%emt 0:03:45]} Bxc5 {[%emt 0:16:48]} 8. Qxd8+ {[%emt 0:10:03] E04: Open Catalan: 5 Nf3} (8. Qa4 O-O 9. Qxc4 Be7 10. Nc3 Bd7 11. Rd1 Rc8 12. Bg5 h6 13. Bxf6 Bxf6 14. Qd3 Qb6 15. Ne4 Be7 16. Nd6 Rcd8 17. Qb3 Qc7 18. Nb5 Qb8 19. Nbd4 Bf6 {½-½ (38) Bu,X (2710)-Lu,S (2615) Taizhou 2015}) 8... Kxd8 {[%emt 0:00:13] LiveBook: 21 Games} 9. Nbd2 {[%emt 0:00:43]} Bd7 {[%emt 0:05:26]} 10. Nxc4 {[%emt 0:01:06]} Rc8 {[%emt 0:02:20]} 11. Nfe5 {[%emt 0:06:15]} Ke7 $1 {[%emt 0:00:40]} 12. Nd3 $146 {[%emt 0:02:11]} ({Predecessor:} 12. Bg5 Nxe5 13. Nxe5 h6 14. Bxf6+ gxf6 15. Nxd7 Kxd7 16. Bxb7 {½-½ (63) Maze,S (2546)-Sokolov,A (2570) Nimes 2009}) 12... Nd4 {[%emt 0:03:45]} 13. Bxb7 {[%emt 0:10:11]} Nxe2+ {[%emt 0:18:16]} 14. Kg2 {[%emt 0:00:52]} Nxc1 {[%emt 0:13:48]} 15. Raxc1 {[%emt 0:08:19]} Rc7 {[%emt 0:01:40]} 16. Nce5 {[%emt 0:03:35]} Bd6 {[%emt 0:02:47]} 17. Rxc7 {[%emt 0:01:15]} Bxc7 {[%emt 0:00:02]} 18. Nxd7 {[%emt 0:01:19]} Nxd7 {[%emt 0:00:15]} 19. Nb4 {[%emt 0:04:19]} Nb8 $11 {[%emt 0:03:23]} 20. Rc1 {[%emt 0:10:06]} Bd6 {[%emt 0:00:37]} 21. a3 {[%emt 0:01:16]} Rd8 {[%emt 0:00:41]} 22. Nc6+ {[%emt 0:07:17]} Nxc6 {[%emt 0:00:19]} 23. Bxc6 {[%emt 0:00:11]} Rc8 {[%emt 0:03:21]} 24. Rc4 {[%emt 0:01:47]} g5 {[%emt 0:00:36]} 25. h3 {[%emt 0:01:39]} h6 {[%emt 0:00:09]} 26. a4 {[%emt 0:00:35]} a5 {[%emt 0:00:23]} 27. Bb5 {[%emt 0:00:14]} Rxc4 {[%emt 0:00:10]} 28. Bxc4 {[%emt 0:00:03]} f5 {[%emt 0:00:13]} 29. g4 {[%emt 0:00:36]} Kf6 {[%emt 0:00:14]} 30. Kf3 {[%emt 0:00:15]} Be5 {[%emt 0:00:22]} 31. b3 {[%emt 0:00:10]} Bc3 {[%emt 0:00:09]} 32. Bd3 {[%emt 0:00:23]} Ke5 {[%emt 0:00:09]} 33. Bc4 {[%emt 0:00:06]} Bb4 {Ke4+} 1/2-1/2

[Event "19th Lviv Tradition 2018"]
[Site "Lviv"]
[Date "2018.01.27"]
[Round "9"]
[White "Bykovskiy, Oleg"]
[Black "Kagramanianz, Vartan"]
[Result "1-0"]
[ECO "C16"]
[WhiteElo "2197"]
[BlackElo "2247"]
[Annotator "NA"]
[PlyCount "89"]
[EventDate "2018.??.??"]
[EventType "tourn"]
[EventCountry "UKR"]
[SourceTitle "playchess.com"]
[Source "ChessBase"]
[SourceQuality "1"]
[TimeControl "5400+30"]

1. e4 e6 2. d4 d5 3. Nc3 Bb4 4. e5 Qd7 5. a3 Bxc3+ 6. bxc3 b6 7. Qg4 f5 8. Qg3 Ba6 9. Bxa6 Nxa6 10. Ne2 Kf7 11. a4 Nb8 12. h4 Ne7 13. h5 h6 14. Nf4 Nbc6 15. Ba3 Rhe8 16. Ng6 Kg8 17. Rh4 Rec8 18. Ke2 Qe8 19. Rg1 Nxg6 20. hxg6 Ne7 21. Bxe7 Qxe7 22. Rgh1 c5 23. Rxh6 gxh6 24. Rxh6 cxd4 25. Rh7 Qc7 26. Rxc7 Rxc7 27. cxd4 Rxc2+ 28. Ke1 Rac8 29. Qh4 R2c7 30. g4 f4 31. Qh6 Rg7 32. Qg5 Rf8 33. f3 Rc7 34. Qh6 Rg7 35. Kd2 Rc8 36. Kd3 a6 37. Qxf4 Rxg6 38. Qg3 Rf8 39. f4 Rf7 40. Ke3 b5 41. axb5 axb5 42. Qh4 b4 43. Qd8+ Kg7 44. g5 b3 45. Qb6 1-0

[Event "19th Lviv Tradition 2018"]
[Site "Lviv"]
[Date "2018.01.27"]
[Round "9"]
[White "Kryvoruchko, Vita"]
[Black "Bets, Anatolij"]
[Result "0-1"]
[ECO "D35"]
[WhiteElo "2192"]
[BlackElo "2266"]
[Annotator "RC"]
[PlyCount "68"]
[EventDate "2018.??.??"]
[EventType "tourn"]
[EventCountry "UKR"]
[SourceTitle "playchess.com"]
[Source "ChessBase"]
[SourceQuality "1"]
[TimeControl "5400+30"]

1. d4 {[%emt 0:00:00]} Nf6 {[%emt 0:00:59]} 2. c4 {[%emt 0:00:18]} e6 {[%emt 0:00:07]} 3. Nc3 {[%emt 0:00:11]} d5 {[%emt 0:00:14]} 4. cxd5 {[%emt 0:00:15]} Nxd5 {[%emt 0:05:03]} 5. e4 {[%emt 0:00:31]} Nxc3 {[%emt 0:00:03]} 6. bxc3 {[%emt 0:00:05]} c5 {[%emt 0:00:07]} 7. Nf3 {[%emt 0:04:02]} cxd4 {[%emt 0:00:40]} 8. cxd4 {[%emt 0:00:05]} Nc6 {[%emt 0:01:04]} 9. Bc4 {[%emt 0:01:42]} b5 {[%emt 0:00:39]} 10. Bb3 {[%emt 0:00:39]} Bb4+ {[%emt 0:00:26]} 11. Bd2 {[%emt 0:00:04]} Bxd2+ {[%emt 0:06:51]} 12. Qxd2 {[%emt 0:00:02]} O-O {[%emt 0:00:54]} 13. O-O {[%emt 0:00:04]} Na5 {[%emt 0:00:32]} 14. Bc2 {[%emt 0:00:19]} Bb7 {[%emt 0:01:54]} 15. Rad1 {[%emt 0:02:00]} Nc4 {[%emt 0:06:23]} 16. Qf4 {[%emt 0:00:32]} Rc8 {[%emt 0:04:28]} 17. d5 {[%emt 0:02:22]} e5 {[%emt 0:04:03]} 18. Qg4 {[%emt 0:02:24]} Nd6 {[%emt 0:07:16]} 19. Bd3 {[%emt 0:00:54]} f6 {[%emt 0:08:00]} 20. Nh4 {[%emt 0:01:37]} Rc7 {[%emt 0:00:46]} 21. f4 {[%emt 0:03:40]} Bc8 {[%emt 0:06:37]} 22. Qg3 {[%emt 0:01:28]} exf4 {[%emt 0:05:01]} 23. Rxf4 {[%emt 0:02:12]} Re7 {[%emt 0:03:15]} 24. Rdf1 {[%emt 0:08:12]} Kh8 {[%emt 0:09:15]} 25. Kh1 {[%emt 0:34:15]} Rfe8 {[%emt 0:18:06]} 26. e5 {[%emt 0:12:57]} Rxe5 {[%emt 0:02:07]} 27. Ng6+ {[%emt 0:00:05]} hxg6 {[%emt 0:02:23]} 28. Bxg6 {[%emt 0:00:01]} Kg8 {[%emt 0:01:03]} 29. Bxe8 {[%emt 0:02:17]} Qxe8 {[%emt 0:01:43]} 30. Rxf6 {[%emt 0:00:10]} Nf5 {[%emt 0:00:22]} 31. Qg5 {[%emt 0:02:03]} Qe7 {[%emt 0:01:21]} 32. Rg6 {[%emt 0:00:59]} Re1 {[%emt 0:01:49]} 33. Qf4 {[%emt 0:01:14]} Qe4 {[%emt 0:01:10]} 34. Rg4 {[%emt 0:00:30]} Rxf1+ {[%emt 0:00:30]} 0-1